fUSD/lending_fUSD_20260406
["ID","MTS","AMOUNT","RATE_DAILY","PERIOD"]
[419927529,1775513437918,-9999.99,0.00010014,2]
[419927568,1775513438551,-9999.99,0.00010014,2]
[419927571,1775513438571,-9999.99,0.00010014,2]
[419927573,1775513438581,-8479.59,0.00010014,2]
[419927575,1775513438591,-313.09,0.00010014,2]
[419927576,1775513438600,-150.0,0.00010015,2]
[419927577,1775513438610,-150.0,0.00010015,2]
[419927578,1775513438620,-420.90158773,0.00010028,2]
[419927579,1775513438629,-251.89828418,0.00010037,2]
[419927580,1775513438639,-500.0,0.00010037,2]
[419927581,1775513438649,-500.0,0.00010037,2]
[419927582,1775513438659,-158.6705802,0.00010037,2]
[419927583,1775513438668,-500.0,0.00010037,2]
[419927584,1775513438678,-500.0,0.00010037,2]
[419927585,1775513438688,-500.0,0.00010037,2]
[419927586,1775513438698,-500.0,0.00010037,2]
[419927587,1775513438708,-500.0,0.00010037,2]
[419927588,1775513438718,-500.0,0.00010037,2]
[419927589,1775513438728,-500.0,0.00010037,2]
[419927590,1775513438737,-500.0,0.00010037,2]
[419927591,1775513438747,-500.0,0.00010037,2]
[419927592,1775513438756,-500.0,0.00010037,2]
[419927593,1775513438766,-500.0,0.00010037,2]
[419927594,1775513438775,-500.0,0.00010037,2]
[419927595,1775513438785,-500.0,0.00010037,2]
[419927596,1775513438795,-500.0,0.00010037,2]
[419927597,1775513438805,-500.0,0.00010037,2]
[419927598,1775513438814,-500.0,0.00010037,2]
[419927599,1775513438823,-500.0,0.00010037,2]
[419927600,1775513438833,-500.0,0.00010037,2]
[419927601,1775513438843,-500.0,0.00010037,2]
[419927602,1775513438852,-500.0,0.00010037,2]
[419927603,1775513438862,-500.0,0.00010037,2]
[419927604,1775513438871,-500.0,0.00010037,2]
[419927605,1775513438881,-500.0,0.00010037,2]
[419927606,1775513438890,-500.0,0.00010037,2]
[419927607,1775513438900,-500.0,0.00010037,2]
[419927608,1775513438909,-500.0,0.00010037,2]
[419927609,1775513438918,-522.83857226,0.00010037,2]
[419927610,1775513438928,-500.0,0.00010037,2]
[419927611,1775513438938,-500.0,0.00010037,2]
[419927612,1775513438947,-500.0,0.00010037,2]
[419927613,1775513438957,-1500000.0,0.00010038,2]
[419927614,1775513438966,-88378.8613,0.00010038,2]
[419927615,1775513438976,-500.0,0.00010073,2]
[419927616,1775513438985,-500.0,0.00010073,2]
[419927617,1775513438995,-500.0,0.00010073,2]
[419927618,1775513439004,-500.0,0.00010073,2]
[419927619,1775513439014,-500.17694496,0.00010073,2]
[419927620,1775513439023,-500.0,0.00010073,2]
[419927621,1775513439033,-649.74579026,0.00010073,2]
[419927622,1775513439042,-461.10773956,0.00010073,2]
[419927623,1775513439052,-500.0,0.00010073,2]
[419927624,1775513439061,-500.25334159,0.00010073,2]
[419927625,1775513439070,-500.0,0.00010073,2]
[419927626,1775513439080,-500.0,0.00010073,2]
[419927627,1775513439090,-501.75389505,0.00010073,2]
[419927628,1775513439101,-500.0,0.00010073,2]
[419927629,1775513439110,-500.16623209,0.00010073,2]
[419927630,1775513439120,-150.0,0.00010091,2]
[419927631,1775513439129,-420.0,0.00010116,2]
[419927632,1775513439138,-2500.0,0.00010136,2]
[419927633,1775513439148,-28562.67032287,0.00010137,2]
[419927634,1775513439158,-5491.6129,0.00010138,2]
[419927635,1775513439168,-1000.0,0.00010138,2]
[419927636,1775513439177,-4012.1343,0.00010138,2]
[419927637,1775513439186,-23529.9023,0.00010138,2]
[419927638,1775513439196,-522.83799704,0.00010138,2]
[419927639,1775513439205,-353.40854714,0.00010138,2]
[419927640,1775513439220,-6260.93307363,0.00010138,2]
[419927641,1775513439230,-2863.19157107,0.00010138,2]
[419927642,1775513439240,-190.32065933,0.00010138,2]
[419927643,1775513439251,-150.0,0.000102,2]
[419927644,1775513439261,-289.4922961,0.00010219,2]
[419927645,1775513439271,-188.59451977,0.00010219,2]
[419927646,1775513439281,-277.10434258,0.00010219,2]
[419927647,1775513439291,-151.81936319,0.00010219,2]
[419927648,1775513439301,-283.88775064,0.00010219,2]
[419927649,1775513439311,-189.10004975,0.00010219,2]
[419927650,1775513439321,-207.13368262,0.00010219,2]
[419927651,1775513439331,-249.17338742,0.00010219,2]
[419927652,1775513439341,-420.90158773,0.00010228,2]
[419927653,1775513439351,-500.0,0.00010232,2]
[419927654,1775513439361,-500.0,0.00010232,2]
[419927655,1775513439371,-500.0,0.00010232,2]
[419927656,1775513439382,-500.0,0.00010232,2]
[419927657,1775513439392,-500.0,0.00010232,2]
[419927658,1775513439402,-200.0,0.00010232,2]
[419927659,1775513439412,-500.0,0.00010232,2]
[419927660,1775513439422,-500.0,0.00010232,2]
[419927661,1775513439432,-500.0,0.00010232,2]
[419927662,1775513439442,-500.0,0.00010232,2]
[419927663,1775513439452,-500.0,0.00010232,2]
[419927664,1775513439462,-500.0,0.00010232,2]
[419927665,1775513439473,-500.0,0.00010232,2]
[419927666,1775513439483,-151.0,0.00010232,2]
[419927667,1775513439492,-151.0,0.00010232,2]
[419927668,1775513439502,-151.0,0.00010232,2]
[419927669,1775513439512,-151.0,0.00010232,2]
[419927670,1775513439522,-151.0,0.00010232,2]
[419927671,1775513439532,-151.0,0.00010232,2]
[419927672,1775513439542,-151.0,0.00010232,2]
[419927673,1775513439552,-151.0,0.00010232,2]
[419927674,1775513439562,-151.0,0.00010232,2]
[419927675,1775513439573,-151.0,0.00010232,2]
[419927676,1775513439583,-151.0,0.00010232,2]
[419927677,1775513439593,-151.0,0.00010232,2]
[419927678,1775513439604,-151.0,0.00010232,2]
[419927679,1775513439614,-151.0,0.00010232,2]
[419927680,1775513439624,-151.0,0.00010232,2]
[419927681,1775513439634,-151.0,0.00010232,2]
[419927682,1775513439645,-151.0,0.00010232,2]
[419927683,1775513439655,-151.0,0.00010232,2]
[419927684,1775513439665,-151.0,0.00010232,2]
[419927685,1775513439675,-151.0,0.00010232,2]
[419927686,1775513439686,-151.0,0.00010232,2]
[419927687,1775513439697,-500.0,0.00010232,2]
[419927688,1775513439707,-151.0,0.00010232,2]
[419927689,1775513439717,-500.0,0.00010232,2]
[419927690,1775513439727,-151.0,0.00010232,2]
[419927691,1775513439737,-500.0,0.00010232,2]
[419927692,1775513439747,-500.0,0.00010232,2]
[419927693,1775513439757,-151.0,0.00010232,2]
[419927694,1775513439767,-500.0,0.00010232,2]
[419927695,1775513439777,-151.0,0.00010232,2]
[419927696,1775513439787,-500.0,0.00010232,2]
[419927697,1775513439798,-151.0,0.00010232,2]
[419927698,1775513439808,-500.0,0.00010232,2]
[419927699,1775513439819,-151.0,0.00010232,2]
[419927700,1775513439829,-500.0,0.00010232,2]
[419927701,1775513439839,-151.0,0.00010232,2]
[419927702,1775513439849,-500.0,0.00010232,2]
[419927703,1775513439859,-151.0,0.00010232,2]
[419927704,1775513439869,-500.0,0.00010232,2]
[419927705,1775513439880,-151.0,0.00010232,2]
[419927706,1775513439890,-500.0,0.00010232,2]
[419927707,1775513439900,-151.0,0.00010232,2]
[419927708,1775513439911,-500.0,0.00010232,2]
[419927709,1775513439921,-151.0,0.00010232,2]
[419927710,1775513439931,-151.0,0.00010232,2]
[419927711,1775513439942,-280.17407569,0.00010232,2]
[419927712,1775513439952,-1337.30371513,0.00010232,2]
[419927713,1775513439962,-500.0,0.00010232,2]
[419927714,1775513439972,-2622.277,0.00010232,2]
[419927715,1775513439981,-170.587,0.00010232,2]
[419927716,1775513439991,-151.0,0.00010236,2]
[419927717,1775513440001,-500.0,0.00010237,2]
[419927718,1775513440011,-398.54134667,0.00010237,2]
[419927719,1775513440022,-500.0,0.00010237,2]
[419927720,1775513440033,-500.0,0.00010237,2]
[419927721,1775513440043,-500.0,0.00010237,2]
[419927722,1775513440058,-500.0,0.00010237,2]
[419927723,1775513440068,-500.0,0.00010237,2]
[419927724,1775513440078,-500.0,0.00010237,2]
[419927725,1775513440088,-500.0,0.00010237,2]
[419927726,1775513440098,-500.0,0.00010237,2]
[419927727,1775513440109,-500.0,0.00010237,2]
[419927728,1775513440118,-176.51436944,0.00010237,2]
[419927729,1775513440128,-150.0,0.00010237,2]
[419927730,1775513440138,-330.53749793,0.00010237,2]
[419927731,1775513440148,-500.0,0.00010237,2]
[419927732,1775513440159,-2500000.0,0.00010238,2]
[419927733,1775513440169,-152.94716531,0.00010238,2]
[419927734,1775513440179,-1084.35002386,0.00010238,3]
[419927735,1775513440189,-193.0,0.00010249,2]
[419927736,1775513440200,-250.0,0.00010249,2]
[419927737,1775513440210,-420.0,0.00010249,2]
[419927738,1775513440221,-1680.0,0.00010249,2]
[419927739,1775513440231,-500.0,0.00010273,2]
[419927740,1775513440241,-500.0,0.00010273,2]
[419927741,1775513440251,-500.62896533,0.00010273,2]
[419927742,1775513440261,-500.0,0.00010273,2]
[419927743,1775513440272,-549.675327,0.00010273,2]
[419927744,1775513440282,-155.67,0.00010339,2]
[419927745,1775513440292,-151.58,0.00010395,2]
[419927746,1775513440302,-213.0,0.00010454,2]
[419927747,1775513440312,-500.0,0.00010506,2]
[419927748,1775513440323,-1116.0,0.00010534,2]
[419927749,1775513440333,-193311.46333558,0.00010555,2]
[419927750,1775513440343,-501.44071696,0.00010621,2]
[419927751,1775513440354,-500.0,0.00010621,2]
[419927752,1775513440364,-1000.0,0.00010621,2]
[419927753,1775513440374,-1000.0,0.00010621,2]
[419927754,1775513440384,-204.26825693,0.00010621,2]
[419927755,1775513440394,-1000.0,0.00010621,2]
[419927756,1775513440404,-1000.0,0.00010621,2]
[419927757,1775513440416,-1000.0,0.00010621,2]
[419927758,1775513440426,-1000.0,0.00010621,2]
[419927759,1775513440436,-420.90158773,0.0001069,2]
[419927760,1775513440447,-2927189.33690677,0.000107,2]
[419927764,1775513442229,-256655.96747769,0.000107,2]
[419927765,1775513442238,-200.0,0.0001078,2]
[419927766,1775513442247,-1386.78395259,0.0001078,2]
[419927767,1775513442257,-396.45,0.00010785,2]
[419927768,1775513442266,-576.41909116,0.000108,2]
[419927769,1775513442278,-0.58090884,0.000108,2]
[419927770,1775513442287,-500.0,0.00010821,2]
[419927771,1775513442296,-500.0,0.00010821,2]
[419927772,1775513442306,-1000.0,0.00010821,2]
[419927773,1775513442315,-3017.1238535,0.000109,2]
[419927774,1775513442324,-1794.19803098,0.000109,2]
[419927775,1775513442351,-618.6790189,0.000109,2]
[419927782,1775513442606,-604.24680357,0.000109,2]
[419927783,1775513442616,-2427.07,0.00010937,2]
[419927784,1775513442625,-1852.42,0.00010937,2]
[419927785,1775513442635,-500.0,0.00010959,2]
[419927786,1775513442644,-226.04203092,0.00010959,2]
[419927787,1775513442653,-202.30776909,0.00010959,2]
[419927788,1775513442662,-2604.59251375,0.00011,2]
[419927789,1775513442671,-177.35,0.00011004,2]
[419927790,1775513442680,-255.0,0.00011015,2]
[419927791,1775513442689,-1600.0,0.00011082,2]
[419927792,1775513442698,-1116.0,0.00011088,2]
[419927793,1775513442707,-4774.70080576,0.00011099,2]
[419927794,1775513442819,-22557.23019363,0.00011099,2]
[419927795,1775513442828,-27331.93099935,0.00011099,2]
[419927796,1775513442838,-26653.40585011,0.00011099,2]
[419927797,1775513442847,-26653.40585005,0.00011099,2]
[419927798,1775513442856,-26653.40585005,0.00011099,2]
[419927799,1775513442866,-26653.40585005,0.00011099,2]
[419927800,1775513442875,-587.0,0.00011127,2]
[419927801,1775513442884,-1602.0,0.00011133,2]
[419927802,1775513442894,-27331.93099935,0.00011134,2]
[419927803,1775513442903,-1559.0,0.00011155,2]
[419927804,1775513442912,-2733.2,0.00011159,2]
[419927805,1775513442922,-2733.2,0.00011159,2]
[419927806,1775513442932,-1500.0,0.00011168,2]
[419927807,1775513442941,-1500.0,0.00011168,2]
[419927808,1775513442950,-1500.0,0.00011168,2]
[419927809,1775513442960,-1500.0,0.00011168,2]
[419927810,1775513442969,-1500.0,0.00011168,2]
[419927811,1775513442979,-868.86651367,0.00011178,2]
[419927812,1775513442988,-587.0,0.00011274,2]
[419927813,1775513442997,-2351.0,0.00011274,2]
[419927814,1775513443006,-200.0,0.00011328,2]
[419927815,1775513443015,-1438.09495884,0.00011328,2]
[419927816,1775513443025,-3118.80170136,0.00011367,2]
[419927817,1775513443034,-609.27382076,0.00011368,2]
[419927818,1775513443044,-152.94716529,0.0001157,2]
[419927819,1775513443053,-168.7675,0.000116,2]
[419927820,1775513443062,-5534.0,0.000116,5]
[419927821,1775513443072,-27331.93099935,0.00011632,2]
[419927822,1775513443081,-1116.0,0.00011672,2]
[419927823,1775513443090,-3017.12385345,0.0001168,2]
[419927824,1775513443100,-1377.452931,0.00011716,2]
[419927825,1775513443109,-2000.0,0.00011716,2]
[419927826,1775513443118,-2000.0,0.00011716,2]
[419927827,1775513443128,-2000.0,0.00011716,2]
[419927828,1775513443137,-2000.0,0.00011716,2]
[419927829,1775513443146,-312.6739162,0.00011871,2]
[419927830,1775513443156,-200.0,0.00011876,2]
[419927831,1775513443165,-1491.30447232,0.00011876,2]
[419927832,1775513443175,-160.0,0.00011983,2]
[419927833,1775513443184,-445.840448,0.00011983,2]
[419927834,1775513443194,-731.680896,0.00011983,2]
[419927835,1775513443203,-173.039058,0.00011983,2]
[419927836,1775513443212,-200.0,0.00012,2]
[419927837,1775513443222,-2224.19,0.00012055,2]
[419927838,1775513443232,-152.0,0.0001208,3]
[419927839,1775513443241,-433.0,0.00012116,2]
[419927840,1775513443251,-27331.93099935,0.0001213,2]
[419927841,1775513443261,-1600.0,0.0001219,2]
[419927842,1775513443270,-2500.0,0.00012264,2]
[419927843,1775513443280,-2500.0,0.00012264,2]
[419927844,1775513443290,-2500.0,0.00012264,2]
[419927845,1775513443300,-729.6901256,0.00012264,2]
[419927846,1775513443309,-1116.0,0.00012286,2]
[419927847,1775513443319,-250.0,0.00012312,2]
[419927848,1775513443329,-152.0,0.0001236,4]
[419927849,1775513443338,-160.0,0.00012375,2]
[419927850,1775513443348,-544.452016,0.00012375,2]
[419927851,1775513443358,-928.904033,0.00012375,2]
[419927852,1775513443367,-160.0,0.00012375,2]
[419927853,1775513443377,-291.439793,0.00012375,2]
[419927854,1775513443386,-341.782817,0.00012375,2]
[419927855,1775513443395,-422.879586,0.00012375,2]
[419927856,1775513443404,-823.0,0.00012401,2]
[419927857,1775513443413,-3292.0,0.00012401,2]
[419927858,1775513443422,-200.0,0.00012424,2]
[419927859,1775513443431,-1131.99195168,0.00012424,2]
[419927860,1775513443441,-3017.12385345,0.00012524,2]
[419927861,1775513443450,-607.964247,0.00012582,2]
[419927862,1775513443460,-27331.93099935,0.00012628,2]
[419927863,1775513443470,-152.0,0.0001264,5]
[419927864,1775513443479,-1609.0,0.00012663,2]
[419927865,1775513443489,-1977.0,0.00012689,2]
[419927866,1775513443499,-1267.0,0.00012714,2]
[419927867,1775513443509,-444.0,0.00012739,2]
[419927868,1775513443518,-636.0,0.00012764,2]
[419927869,1775513443528,-3000.0,0.00012812,2]
[419927870,1775513443538,-3000.0,0.00012812,2]
[419927871,1775513443547,-512.47134075,0.00012812,2]
[419927872,1775513443557,-160.0,0.00012863,2]
[419927873,1775513443566,-596.940205,0.00012863,2]
[419927874,1775513443575,-1033.880411,0.00012863,2]
[419927875,1775513443585,-189.8831,0.000129,2]
[419927876,1775513443594,-1116.0,0.000129,2]
[419927877,1775513443604,-152.94716529,0.00012903,2]
[419927878,1775513443613,-152.0,0.0001292,6]
[419927879,1775513443622,-151.0,0.00012971,2]
[419927880,1775513443633,-200.0,0.00012972,2]
[419927881,1775513443642,-742.434568,0.00012994,2]
[419927882,1775513443651,-397.4179,0.00012994,2]
[419927883,1775513443660,-250.0,0.00013,2]
[419927884,1775513443670,-58038.76756829,0.00013,7]
[419927885,1775513443679,-501.0,0.00013,2]
[419927886,1775513443688,-522.83799704,0.00013019,2]
[419927887,1775513443698,-353.40854714,0.00013019,2]
[419927888,1775513443707,-6260.93307362,0.00013019,2]
[419927889,1775513443717,-2863.19157105,0.00013019,2]
[419927890,1775513443726,-27331.93099935,0.00013126,2]
[419927891,1775513443736,-151.0,0.00013172,2]
[419927892,1775513443746,-152.0,0.000132,7]
[419927893,1775513443756,-155.67,0.00013249,2]
[419927894,1775513443765,-1600.0,0.00013298,2]
[419927895,1775513443775,-736.0,0.00013328,2]
[419927896,1775513443784,-2478.68924617,0.0001336,2]
[419927897,1775513443794,-1334.26277974,0.0001336,2]
[419927898,1775513443804,-3017.12385345,0.00013368,2]
[419927899,1775513443814,-152.0,0.0001348,8]
[419927900,1775513443824,-3240.0,0.00013485,2]
[419927901,1775513443834,-814.009371,0.00013507,2]
[419927902,1775513443844,-200.0,0.0001352,2]
[419927903,1775513443853,-1116.0,0.00013545,2]
[419927904,1775513443863,-27331.93099935,0.00013624,2]
[419927905,1775513443872,-177.35,0.00013637,2]
[419927906,1775513443882,-1152.0,0.00013641,2]
[419927907,1775513443891,-4609.0,0.00013641,2]
[419927908,1775513443900,-500.0,0.00013698,2]
[419927909,1775513443910,-500.0,0.00013698,2]
[419927910,1775513443920,-500.0,0.00013698,2]
[419927911,1775513443930,-500.0,0.00013698,2]
[419927912,1775513443940,-500.0,0.00013698,2]
[419927913,1775513443949,-500.0,0.00013698,2]
[419927914,1775513443958,-500.0,0.00013698,2]
[419927915,1775513443968,-500.0,0.00013698,2]
[419927916,1775513443978,-500.0,0.00013698,2]
[419927917,1775513443988,-500.0,0.00013698,2]
[419927918,1775513443998,-500.0,0.00013698,2]
[419927919,1775513444008,-500.0,0.00013698,2]
[419927920,1775513444018,-500.0,0.00013698,2]
[419927921,1775513444027,-500.0,0.00013698,2]
[419927922,1775513444037,-500.0,0.00013698,2]
[419927923,1775513444046,-500.0,0.00013698,2]
[419927924,1775513444056,-500.0,0.00013698,2]
[419927925,1775513444065,-500.0,0.00013698,2]
[419927926,1775513444074,-500.0,0.00013698,2]
[419927927,1775513444084,-500.0,0.00013698,2]
[419927928,1775513444093,-590.07729801,0.00013698,2]
[419927929,1775513444102,-2933.8,0.00013698,2]
[419927930,1775513444111,-2933.8,0.00013698,2]
[419927931,1775513444121,-500.0,0.00013698,2]
[419927932,1775513444132,-500.0,0.00013698,2]
[419927933,1775513444141,-500.0,0.00013698,2]
[419927934,1775513444150,-500.0,0.00013698,2]
[419927935,1775513444159,-500.0,0.00013698,2]
[419927936,1775513444168,-500.0,0.00013698,2]
[419927937,1775513444178,-500.0,0.00013698,2]
[419927938,1775513444187,-500.0,0.00013698,2]
[419927939,1775513444196,-500.0,0.00013698,2]
[419927940,1775513444205,-500.0,0.00013698,2]
[419927941,1775513444215,-500.0,0.00013698,2]
[419927942,1775513444224,-500.0,0.00013698,2]
[419927943,1775513444234,-500.0,0.00013698,2]
[419927944,1775513444243,-500.0,0.00013698,2]
[419927945,1775513444252,-500.0,0.00013698,2]
[419927946,1775513444262,-500.0,0.00013698,2]
[419927947,1775513444272,-500.0,0.00013698,2]
[419927948,1775513444281,-500.0,0.00013698,2]
[419927949,1775513444291,-500.0,0.00013698,2]
[419927950,1775513444301,-500.0,0.00013698,2]
[419927951,1775513444310,-500.0,0.00013698,2]
[419927952,1775513444320,-500.0,0.00013698,2]
[419927953,1775513444329,-500.0,0.00013698,2]
[419927954,1775513444339,-500.0,0.00013698,2]
[419927955,1775513444348,-500.0,0.00013698,2]
[419927956,1775513444357,-500.0,0.00013698,2]
[419927957,1775513444366,-500.0,0.00013698,2]
[419927958,1775513444376,-500.0,0.00013698,2]
[419927959,1775513444386,-500.0,0.00013698,2]
[419927960,1775513444395,-500.0,0.00013698,2]
[419927961,1775513444404,-500.0,0.00013698,2]
[419927962,1775513444414,-508.61892667,0.00013698,2]
[419927963,1775513444424,-500.0,0.00013698,2]
[419927964,1775513444433,-500.0,0.00013698,2]
[419927965,1775513444443,-500.0,0.00013698,2]
[419927966,1775513444452,-500.0,0.00013698,2]
[419927967,1775513444462,-500.0,0.00013698,2]
[419927968,1775513444471,-500.0,0.00013698,2]
[419927969,1775513444480,-500.0,0.00013698,2]
[419927970,1775513444490,-500.0,0.00013698,2]
[419927971,1775513444499,-500.0,0.00013698,2]
[419927972,1775513444509,-500.0,0.00013698,2]
[419927973,1775513444518,-500.0,0.00013698,2]
[419927974,1775513444527,-500.0,0.00013698,2]
[419927975,1775513444536,-597.32595487,0.00013698,2]
[419927976,1775513444546,-500.0,0.00013698,2]
[419927977,1775513444556,-500.0,0.00013698,2]
[419927978,1775513444565,-500.0,0.00013698,2]
[419927979,1775513444575,-500.0,0.00013698,2]
[419927980,1775513444584,-500.0,0.00013698,2]
[419927981,1775513444593,-500.0,0.00013698,2]
[419927982,1775513444603,-500.0,0.00013698,2]
[419927983,1775513444612,-500.0,0.00013698,2]
[419927984,1775513444622,-500.0,0.00013698,2]
[419927985,1775513444634,-500.0,0.00013698,2]
[419927986,1775513444643,-500.0,0.00013698,2]
[419927987,1775513444652,-500.0,0.00013698,2]
[419927988,1775513444661,-500.0,0.00013698,2]
[419927989,1775513444670,-500.0,0.00013698,2]
[419927990,1775513444680,-639.79,0.00013698,2]
[419927991,1775513444689,-639.79,0.00013698,2]
[419927992,1775513444698,-639.79,0.00013698,2]
[419927993,1775513444708,-639.79,0.00013698,2]
[419927994,1775513444717,-639.79,0.00013698,2]
[419927995,1775513444726,-639.79,0.00013698,2]
[419927996,1775513444736,-639.79,0.00013698,2]
[419927997,1775513444745,-500.0,0.00013698,2]
[419927998,1775513444754,-500.0,0.00013698,2]
[419927999,1775513444763,-559.50723655,0.00013698,2]
[419928000,1775513444773,-500.0,0.00013698,2]
[419928001,1775513444782,-500.0,0.00013698,2]
[419928002,1775513444791,-500.0,0.00013698,2]
[419928003,1775513444801,-500.0,0.00013698,2]
[419928004,1775513444810,-500.0,0.00013698,2]
[419928005,1775513444819,-500.0,0.00013698,2]
[419928006,1775513444829,-500.0,0.00013698,2]
[419928007,1775513444838,-500.0,0.00013698,2]
[419928008,1775513444848,-500.0,0.00013698,2]
[419928009,1775513444858,-500.0,0.00013698,2]
[419928010,1775513444867,-500.0,0.00013698,2]
[419928011,1775513444878,-500.0,0.00013698,2]
[419928012,1775513444887,-500.0,0.00013698,2]
[419928013,1775513444896,-500.0,0.00013698,2]
[419928014,1775513444905,-500.0,0.00013698,2]
[419928015,1775513444915,-500.0,0.00013698,2]
[419928016,1775513444924,-500.0,0.00013698,2]
[419928017,1775513444934,-500.0,0.00013698,2]
[419928018,1775513444943,-500.0,0.00013698,2]
[419928019,1775513444952,-500.0,0.00013698,2]
[419928020,1775513444962,-500.0,0.00013698,2]
[419928021,1775513444972,-500.0,0.00013698,2]
[419928022,1775513444981,-500.0,0.00013698,2]
[419928023,1775513444990,-547.42518034,0.00013698,2]
[419928024,1775513445000,-637.4,0.00013698,2]
[419928025,1775513445009,-637.4,0.00013698,2]
[419928026,1775513445018,-637.4,0.00013698,2]
[419928027,1775513445028,-637.4,0.00013698,2]
[419928028,1775513445038,-637.4,0.00013698,2]
[419928029,1775513445047,-637.4,0.00013698,2]
[419928030,1775513445057,-637.4,0.00013698,2]
[419928031,1775513445065,-500.0,0.00013698,2]
[419928032,1775513445074,-500.0,0.00013698,2]
[419928033,1775513445084,-500.0,0.00013698,2]
[419928034,1775513445093,-500.0,0.00013698,2]
[419928035,1775513445102,-500.0,0.00013698,2]
[419928036,1775513445112,-500.0,0.00013698,2]
[419928037,1775513445121,-500.0,0.00013698,2]
[419928038,1775513445131,-500.0,0.00013698,2]
[419928039,1775513445140,-500.0,0.00013698,2]
[419928040,1775513445149,-500.0,0.00013698,2]
[419928041,1775513445158,-500.0,0.00013698,2]
[419928042,1775513445168,-500.0,0.00013698,2]
[419928043,1775513445177,-500.0,0.00013698,2]
[419928044,1775513445186,-500.0,0.00013698,2]
[419928045,1775513445195,-500.0,0.00013698,2]
[419928046,1775513445205,-500.0,0.00013698,2]
[419928047,1775513445214,-500.0,0.00013698,2]
[419928048,1775513445224,-500.0,0.00013698,2]
[419928049,1775513445233,-500.0,0.00013698,2]
[419928050,1775513445242,-500.0,0.00013698,2]
[419928051,1775513445252,-500.0,0.00013698,2]
[419928052,1775513445262,-500.0,0.00013698,2]
[419928053,1775513445271,-502.76097898,0.00013698,2]
[419928054,1775513445281,-500.0,0.00013698,2]
[419928055,1775513445291,-507.01970036,0.00013698,2]
[419928056,1775513445301,-500.0,0.00013698,2]
[419928057,1775513445310,-500.0,0.00013698,2]
[419928058,1775513445319,-500.0,0.00013698,2]
[419928059,1775513445329,-500.0,0.00013698,2]
[419928060,1775513445339,-500.0,0.00013698,2]
[419928061,1775513445348,-500.0,0.00013698,2]
[419928062,1775513445358,-500.0,0.00013698,2]
[419928063,1775513445367,-500.0,0.00013698,2]
[419928064,1775513445377,-500.0,0.00013698,2]
[419928065,1775513445386,-500.0,0.00013698,2]
[419928066,1775513445396,-500.0,0.00013698,2]
[419928067,1775513445724,-500.0,0.00013698,2]
[419928068,1775513445793,-500.0,0.00013698,2]
[419928069,1775513445803,-500.0,0.00013698,2]
[419928070,1775513445811,-629.61248699,0.00013698,2]
[419928071,1775513445820,-500.0,0.00013698,2]
[419928072,1775513445829,-500.0,0.00013698,2]
[419928073,1775513445838,-500.0,0.00013698,2]
[419928074,1775513445848,-500.0,0.00013698,2]
[419928075,1775513445857,-500.0,0.00013698,2]
[419928076,1775513445866,-189.82902191,0.00013698,2]
[419928077,1775513445875,-502.13748026,0.00013698,2]
[419928078,1775513445884,-500.0,0.00013698,2]
[419928079,1775513445893,-500.0,0.00013698,2]